bitfinex/quotes_ETHUSD_20251010
["timestamp","ask_amount","ask_price","bid_price","bid_amount"]
[1760121211852,0.001,4099.0,4098.9,9.81058248]
[1760121212469,0.001,4099.0,4098.9,11.73058248]
[1760121212670,0.001,4099.0,4098.9,11.85218248]
[1760121212881,0.001,4099.0,4098.9,26.35218248]
[1760121213308,1e-08,4099.5,4099.4,3.07298137]
[1760121213517,1e-08,4099.5,4099.4,7.51922563]
[1760121213721,1e-08,4099.5,4099.4,7.96822563]
[1760121214214,1e-08,4100.0,4099.9,4.99268388]
[1760121214427,1e-08,4100.0,4099.9,10.72868388]
[1760121214701,1e-08,4100.0,4099.9,11.17768388]
[1760121214893,1e-08,4100.0,4099.9,12.53936873]
[1760121215210,1e-08,4100.0,4099.9,27.03936873]
[1760121215419,1e-08,4100.0,4099.9,21.30336873]
[1760121215619,1e-08,4100.0,4099.9,33.39336873]
[1760121216181,1e-08,4100.0,4099.9,21.30336873]
[1760121216338,1e-08,4100.0,4099.9,27.03836873]
[1760121216638,1e-08,4100.0,4099.9,25.00536873]
[1760121216819,1e-08,4100.0,4099.9,27.03836873]
[1760121217187,1e-08,4100.0,4099.9,23.33636873]
[1760121217423,1e-08,4100.0,4099.9,20.66976873]
[1760121217631,1e-08,4100.0,4099.9,26.40476873]
[1760121217828,1e-08,4100.0,4099.9,25.11836873]
[1760121218206,0.00100001,4100.0,4099.9,25.11836873]
[1760121218545,0.00100001,4100.0,4099.9,27.03836873]
[1760121219296,0.00100001,4100.0,4099.9,21.30336873]
[1760121219499,0.00100001,4100.0,4099.9,27.03736873]
[1760121220711,0.00100001,4100.0,4099.9,19.38336873]
[1760121220911,0.00100001,4100.0,4099.9,16.94428485]
[1760121221142,0.00100001,4100.0,4099.9,16.982]
[1760121221318,0.00100001,4100.0,4099.9,23.75568388]
[1760121222449,0.00100001,4100.0,4099.9,20.683]
[1760121222659,0.00100001,4100.0,4099.9,14.949]
[1760121222863,0.00100001,4100.0,4099.9,16.982]
[1760121223155,0.00100001,4100.0,4099.9,23.12208388]
[1760121223362,0.00100001,4100.0,4099.9,23.87728388]
[1760121223546,0.00100001,4100.0,4099.9,24.43237606]
[1760121225471,0.00100001,4100.0,4099.9,26.35237606]
[1760121225833,0.00100001,4100.0,4099.9,43.39638019]
[1760121227857,0.00100001,4100.0,4099.9,37.66238019]
[1760121228053,0.00100001,4100.0,4099.9,29.00237606]
[1760121228248,0.00100001,4100.0,4099.9,32.06877606]
[1760121228545,0.00100001,4100.0,4099.9,23.68477606]
[1760121228763,0.00100001,4100.0,4099.9,23.79677606]
[1760121229145,0.00100001,4100.0,4099.9,24.43037606]
[1760121230584,0.00100001,4100.0,4099.9,15.62569218]
[1760121230753,0.00100001,4100.0,4099.9,23.79677606]
[1760121230951,0.00100001,4100.0,4099.9,24.43037606]
[1760121231201,0.00100001,4100.0,4099.9,15.0706]
[1760121231376,0.00100001,4100.0,4099.9,14.6216]
[1760121231548,0.00100001,4100.0,4099.9,18.2]
[1760121231748,2.4400244,4100.0,4099.9,18.2]
[1760121232169,0.00100001,4100.0,4099.9,18.2]
[1760121232350,0.520276,4100.0,4099.9,18.6339]
[1760121232557,2.95930039,4100.0,4099.9,18.2]
[1760121232987,2.95930039,4100.0,4099.9,21.09966]
[1760121232988,0.00100001,4100.0,4099.9,21.09966]
[1760121233151,0.00100001,4100.0,4099.9,19.2675]
[1760121233355,0.520276,4100.0,4099.9,14.5]
[1760121233686,0.520276,4100.0,4099.9,18.2]
[1760121234072,2.95930039,4100.0,4099.9,18.2]
[1760121234278,0.520276,4100.0,4099.9,18.2]
[1760121235073,2.95930039,4100.0,4099.9,18.2]
[1760121235707,2.95930039,4100.0,4099.8,2.032]
[1760121235708,2.95930039,4100.0,4099.8,0.002]
[1760121235916,5.10555987,4099.9,4099.8,0.002]
[1760121236207,5.75416942,4099.9,4099.8,1.055]
[1760121236610,5.52696942,4099.9,4099.8,1.055]
[1760121237389,4.87835987,4099.9,4099.8,1.055]
[1760121237588,4.97735987,4099.9,4099.8,1.055]
[1760121237790,5.10555987,4099.9,4099.8,1.055]
[1760121237991,5.98151096,4099.9,4099.8,0.002]
[1760121238779,6.41948651,4099.9,4099.8,0.002]
[1760121239021,5.10555987,4099.9,4099.8,0.002]
[1760121239221,4.87835987,4099.9,4099.8,0.002]
[1760121239581,5.10585987,4099.9,4099.8,0.002]
[1760121240627,35.10585987,4099.9,4099.8,0.002]
[1760121240781,2.43932186,4099.5,4099.4,0.002]
[1760121241127,4.87859785,4099.5,4099.4,0.002]
[1760121241433,4.97759785,4099.5,4099.4,0.002]
[1760121241589,23.76265943,4099.5,4099.4,0.002]
[1760121241925,22.45983645,4099.5,4099.4,0.002]
[1760121242236,23.76099116,4099.5,4099.4,0.002]
[1760121242569,53.76099116,4099.5,4099.4,0.002]
[1760121242824,42.42999116,4099.5,4099.4,0.002]
[1760121243025,41.12883645,4099.5,4099.4,0.002]
[1760121243182,42.42966811,4099.5,4099.4,0.002]
[1760121243727,39.88266811,4099.5,4099.4,0.002]
[1760121243927,22.45983645,4099.5,4099.4,0.002]
[1760121244221,33.65083645,4099.5,4099.4,0.002]
[1760121244422,52.45983645,4099.5,4099.4,0.002]
[1760121244622,53.76066811,4099.5,4099.4,0.002]
[1760121244922,52.45983645,4099.5,4099.4,0.002]
[1760121245889,53.76066811,4099.5,4099.4,0.002]
[1760121246486,53.75941021,4099.5,4099.4,0.002]
[1760121246812,52.45983645,4099.5,4099.4,0.002]
[1760121246975,52.45983645,4099.5,4098.0,14.5]
[1760121246976,2.44015519,4098.1,4098.0,14.5]
[1760121247176,2.44015519,4098.1,4097.3,0.1216]
[1760121247177,2.019,4098.1,4097.3,0.1216]
[1760121247379,2.44076262,4097.1,4097.0,1.216]
[1760121247580,2.44075077,4097.1,4097.0,1.216]
[1760121247810,2.44075077,4097.1,4097.0,15.716]
[1760121248112,2.44075077,4097.1,4097.0,14.5]
[1760121249319,1.92,4097.4,4096.6,3.701]
[1760121249613,2.44098908,4096.7,4096.6,3.701]
[1760121249813,2.44123381,4096.3,4096.1,3.702]
[1760121250131,1.92,4096.5,4095.9,2.033]
[1760121250440,2.44152546,4095.8,4095.0,0.002]
[1760121250729,2.44164469,4095.6,4095.0,0.002]
[1760121251104,2.54254469,4095.6,4095.0,0.002]
[1760121251307,4.46254469,4095.6,4095.0,0.002]
[1760121252334,4.36164469,4095.6,4095.0,0.002]
[1760121252793,1.92,4095.6,4095.1,0.65801942]
[1760121252995,1.92,4095.6,4095.5,0.4359]
[1760121253496,2.6357865,4096.8,4095.5,3.16554395]
[1760121253497,2.63578785,4096.8,4095.5,3.16554395]
[1760121253720,2.44112032,4096.5,4095.7,2.44158507]
[1760121253911,2.44112032,4096.5,4095.8,0.45831525]
[1760121254116,2.44105272,4096.6,4095.8,2.89983985]
[1760121254432,2.44057207,4097.4,4095.5,6.43367672]
[1760121254433,3.703,4097.4,4096.5,0.2303]
[1760121254630,2.44097753,4096.8,4096.5,0.2303]
[1760121254996,2.44097753,4096.8,4096.6,0.4339]
[1760121255497,4.36115593,4096.5,4096.2,3.703]
[1760121255705,4.36075077,4097.1,4096.2,3.703]
[1760121255905,2.44121086,4096.4,4095.9,0.4339]
[1760121256129,2.44081034,4097.0,4096.1,3.703]
[1760121256130,7.13,4096.3,4096.1,3.703]
[1760121256613,9.57123222,4096.3,4096.1,3.703]
[1760121256932,7.13,4096.3,4096.2,0.4342]
[1760121257138,1.92,4097.3,4096.2,0.4342]
[1760121257139,2.44117683,4096.4,4096.2,0.4342]
[1760121257291,2.44122744,4096.3,4096.2,0.4342]
[1760121257491,2.44122744,4096.3,4096.0,0.2147]
[1760121257698,2.44122744,4096.3,4096.0,0.48299]
[1760121257898,2.44122744,4096.3,4096.1,0.4342]
[1760121258304,0.1216,4096.5,4096.1,0.4342]
[1760121258537,2.562718,4096.5,4096.1,0.4342]
[1760121258856,2.44129072,4096.2,4096.0,0.26829]
[1760121259206,2.44123951,4096.3,4096.0,0.26829]
[1760121259441,2.44122215,4096.4,4096.1,0.4342]
[1760121259754,2.44122215,4096.4,4096.2,0.4342]
[1760121260044,2.56271105,4096.5,4096.0,0.26829]
[1760121260234,2.0416,4096.5,4096.0,0.70249]
[1760121260542,2.44116785,4096.4,4096.0,0.70249]
[1760121260736,2.56271701,4096.5,4096.1,0.4342]
[1760121260939,2.44116879,4096.4,4096.1,0.4342]
[1760121261139,0.1216,4096.5,4096.1,0.4342]
[1760121261340,2.44127744,4096.3,4096.1,0.4342]
[1760121261506,2.4411788,4096.4,4096.1,0.4342]
[1760121261706,2.44128704,4096.2,4096.1,0.4342]
[1760121261913,2.44128704,4096.2,4096.0,0.26829]
[1760121262140,7.13,4096.1,4096.0,0.26829]
[1760121262832,7.13,4096.1,4096.0,0.70249]
[1760121264314,0.1216,4096.5,4096.0,0.70249]
[1760121264513,0.1216,4096.5,4096.1,4.37631346]
[1760121264830,2.44128281,4096.3,4096.1,3.9177]
[1760121265010,0.1216,4096.5,4095.8,0.1216]
[1760121265213,0.1216,4096.1,4095.5,0.002]
[1760121265438,2.44164469,4095.6,4095.5,0.002]
[1760121265618,4.48324469,4095.6,4095.5,0.002]
[1760121265818,5.10841942,4095.6,4095.5,0.002]
[1760121266419,26.29465802,4095.6,4095.5,0.002]
[1760121266831,26.29465802,4095.6,4095.4,0.002]
[1760121266832,4.3617043,4095.5,4095.4,1e-08]
[1760121267146,4.88137903,4095.5,4095.4,1e-08]
[1760121267316,6.28643796,4095.5,4095.4,1e-08]
[1760121268413,4.98687903,4095.5,4095.4,1e-08]
[1760121268818,34.98687903,4095.5,4095.4,1e-08]
[1760121269030,2.4419428,4095.1,4095.0,0.002]
[1760121269343,2.44218135,4094.7,4094.6,0.002]
[1760121269544,2.44253926,4094.1,4092.9,2.034]
[1760121269755,26.06845259,4094.1,4092.9,2.034]
[1760121269957,27.4739137,4094.1,4092.9,2.034]
[1760121270469,22.46995259,4094.1,4092.9,2.034]
[1760121270669,27.47272946,4094.1,4092.9,2.034]
[1760121270842,23.66322946,4094.1,4093.0,0.45863195]
[1760121271049,26.06845259,4094.1,4093.0,0.45863195]
[1760121271243,8.58621399,4094.1,4093.0,0.45863195]
[1760121271567,27.47272946,4094.1,4092.8,2.73]
[1760121272162,26.17395259,4094.1,4092.8,2.73]
[1760121273833,26.17395259,4094.1,4092.7,0.4342]
[1760121274033,26.17395259,4094.1,4092.7,2.5962]
[1760121275273,26.17395259,4094.1,4092.7,2.162]
[1760121275767,26.17395259,4094.1,4092.7,0.516]
[1760121275942,26.17395259,4094.1,4092.7,2.551]
[1760121277331,26.17395259,4094.1,4092.9,0.4342]
[1760121279068,26.17595259,4094.1,4092.9,0.4342]
[1760121279439,22.46995259,4094.1,4092.9,0.4342]
[1760121279640,26.17595259,4094.1,4092.9,0.4342]
[1760121279978,2.56127473,4094.1,4094.0,0.4362]
[1760121280276,0.51967473,4094.1,4094.0,0.4362]
[1760121280443,0.51967473,4094.1,4094.0,0.72409011]
[1760121280862,0.51967473,4094.1,4094.0,0.28989011]
[1760121281071,2.96221399,4094.1,4094.0,0.002]
[1760121281457,24.25595259,4094.1,4094.0,0.002]
[1760121281861,25.55493481,4094.1,4094.0,0.002]
[1760121282044,26.17595259,4094.1,4094.0,0.002]
[1760121282575,4.88221399,4094.1,4094.0,0.002]
[1760121283768,5.74774778,4094.1,4094.0,0.002]
[1760121283967,4.88221399,4094.1,4094.0,0.002]
[1760121285855,5.53157251,4094.1,4094.0,0.002]
[1760121286064,4.88221399,4094.1,4094.0,0.002]
[1760121286460,5.5316892,4094.1,4094.0,0.002]
[1760121287188,4.88221399,4094.1,4094.0,0.002]
[1760121287344,5.53201508,4094.1,4094.0,0.002]
[1760121289048,5.85324778,4094.1,4094.0,0.002]
[1760121289248,5.74907333,4094.1,4094.0,0.002]
[1760121289451,4.88221399,4094.1,4094.0,0.002]
[1760121290899,29.20631492,4093.2,4093.1,0.002]
[1760121291058,33.43198965,4093.2,4093.1,0.002]
[1760121291256,27.47813526,4093.2,4093.1,0.002]
[1760121291519,5.75020568,4093.2,4093.1,0.002]
[1760121291661,4.98885105,4093.2,4093.1,0.002]
[1760121292298,2.54577473,4093.2,4093.1,0.002]
[1760121292577,5.0060426,4093.2,4093.1,0.002]
[1760121292783,5.1127426,4093.2,4093.1,0.002]
[1760121292979,4.88275105,4093.2,4093.1,0.002]
[1760121293289,5.75068691,4093.2,4093.1,0.002]
[1760121293457,4.88275105,4093.2,4093.1,0.002]
[1760121294348,2.43967473,4093.2,4093.1,0.457]
[1760121294549,0.51967473,4093.2,4093.1,0.457]
[1760121294749,0.51967473,4093.2,4093.1,0.99134508]
[1760121295495,2.96275105,4093.2,4093.1,14.502]
[1760121296192,3.61492328,4093.2,4093.1,14.502]
[1760121296391,5.53492328,4093.2,4093.1,14.502]
[1760121296891,5.53492328,4093.2,4093.1,14.957]
[1760121297089,5.53492328,4093.2,4093.1,14.502]
[1760121297295,5.53634817,4093.2,4093.1,14.502]
[1760121297491,4.88275105,4093.2,4093.1,14.502]
[1760121297699,2.43967473,4093.2,4093.1,14.957]
[1760121297859,4.88275105,4093.2,4093.1,14.957]
[1760121298069,4.88275105,4093.2,4093.1,14.502]
[1760121298596,4.88275105,4093.2,4093.1,0.002]
[1760121298961,4.88275105,4093.2,4093.1,0.457]
[1760121299162,4.88275105,4093.2,4093.1,14.957]
[1760121299764,4.88275105,4093.2,4093.1,14.502]
[1760121300170,4.88275105,4093.2,4093.1,0.002]
[1760121300371,5.64484817,4093.2,4093.1,0.002]
[1760121300609,44.99125105,4093.2,4093.1,0.002]
[1760121300764,34.99446937,4093.2,4093.1,0.002]
[1760121301293,5.4824004,4093.2,4093.1,0.002]
[1760121301658,8.59196937,4093.2,4093.1,0.002]
[1760121301897,8.70046937,4093.2,4093.1,0.002]
[1760121302598,10.00590738,4093.2,4093.1,0.002]
[1760121302798,8.70046937,4093.2,4093.1,0.002]
[1760121303475,4.88596937,4093.2,4093.1,0.002]
[1760121303679,2.96596937,4093.2,4093.1,0.002]
[1760121304074,2.44307632,4093.2,4093.1,0.002]
[1760121304687,2.96596937,4093.2,4093.1,0.002]
[1760121304991,3.72720027,4093.2,4093.1,0.002]
[1760121305195,8.70146937,4093.2,4093.1,0.002]
[1760121305394,38.70146937,4093.2,4093.1,0.002]
[1760121305570,40.00690738,4093.2,4093.1,0.002]
[1760121305776,2.44373304,4092.1,4092.0,0.002]
[1760121306088,4.36373304,4092.1,4092.0,0.002]
[1760121306292,4.88662609,4092.1,4092.0,0.002]
[1760121307109,4.36373304,4092.1,4092.0,0.002]
[1760121307305,0.65300488,4092.7,4092.0,0.002]
[1760121307467,2.56533304,4092.1,4092.0,0.002]
[1760121309896,1.92,4092.5,4092.0,0.002]
[1760121309897,2.44349419,4092.5,4092.0,0.457]
[1760121310207,0.52285976,4092.5,4092.0,0.30445391]
[1760121310425,2.44366477,4092.3,4092.1,0.455]
[1760121310604,2.44367831,4092.2,4092.0,0.002]
[1760121310800,2.44351106,4092.5,4092.0,0.002]
[1760121310801,2.4436556,4092.3,4092.0,0.002]
[1760121310994,2.44373304,4092.1,4092.0,0.002]
[1760121311191,2.44373119,4092.2,4092.0,0.002]
[1760121311495,2.44373304,4092.1,4092.0,0.002]
[1760121311904,2.44368915,4092.2,4092.0,0.457]
[1760121312091,1.92,4092.4,4092.0,0.457]
[1760121312291,0.1216,4092.6,4092.1,0.69673733]
[1760121312491,2.44373304,4092.1,4092.0,0.002]
[1760121314329,1.92,4092.1,4092.0,0.002]
[1760121314532,0.1216,4092.2,4092.0,0.457]
[1760121314695,0.1216,4092.2,4092.1,0.455]
[1760121314896,4.36355895,4092.4,4092.1,0.6723]
[1760121315129,2.4436294,4092.3,4092.2,0.455]
[1760121315425,1.92,4092.4,4092.3,0.455]
[1760121315999,2.44332001,4092.8,4092.3,0.455]
[1760121316000,2.44341307,4092.7,4092.3,0.455]
[1760121316234,4.36344244,4092.6,4092.4,0.4496]
[1760121316427,2.4434489,4092.6,4092.4,0.4496]
[1760121316628,0.523324,4092.7,4092.2,3.707]
[1760121316928,4.36323534,4093.0,4092.5,0.4496]
[1760121317130,0.523324,4092.9,4092.5,0.4496]
[1760121317294,2.4432642,4092.9,4092.6,14.9496]
[1760121317497,2.4432642,4092.9,4092.7,0.4496]
[1760121318204,2.44305834,4093.3,4092.8,0.47403315]
[1760121318436,2.44312558,4093.2,4092.9,0.4496]
[1760121318738,2.44312558,4093.2,4093.0,0.4496]
[1760121318905,2.44312558,4093.2,4093.1,0.4496]
[1760121319105,2.44317097,4093.1,4092.8,5.20440332]
[1760121319297,2.44325236,4093.0,4092.8,4.1566]
[1760121319501,0.001,4093.5,4092.9,0.4496]
[1760121319931,2.44300376,4093.4,4093.0,0.02443195]
[1760121320105,0.52494624,4093.5,4092.9,3.707]
[1760121320297,0.001,4093.5,4092.9,3.707]
[1760121320498,0.001,4093.5,4093.0,3.26347739]
[1760121320734,2.44301207,4093.4,4093.0,0.8203]
[1760121320939,2.44301663,4093.3,4093.0,0.4496]
[1760121321235,0.001,4093.5,4093.1,3.707]
[1760121321409,0.001,4093.5,4092.6,14.5]
[1760121321733,2.44332366,4092.8,4092.6,14.5]
[1760121321910,2.44332366,4092.8,4092.7,3.707]
[1760121322243,2.44326089,4092.9,4092.7,3.707]
[1760121322831,2.44337478,4092.7,4092.6,14.5]
[1760121323033,2.44337478,4092.7,4092.6,18.206]
[1760121323918,2.44337478,4092.7,4092.6,18.6556]
[1760121324236,2.44337478,4092.7,4092.6,14.5]
[1760121324603,1.92,4093.3,4092.6,14.9496]
[1760121324807,0.001,4093.4,4092.6,14.9496]
[1760121325028,1.92,4093.2,4092.6,14.9496]
[1760121325225,0.001,4093.4,4092.6,17.05952071]
[1760121325541,2.44397161,4093.4,4092.7,1.10763374]
[1760121325706,0.001,4093.4,4093.0,0.1216]
[1760121326036,0.001,4093.4,4093.1,4.18003136]
[1760121326341,0.001,4093.4,4093.1,4.1556]
[1760121326539,0.001,4093.4,4093.2,0.4496]
[1760121327143,2.44301663,4093.3,4093.1,3.706]
[1760121327443,0.001,4093.4,4093.1,3.706]
[1760121327648,0.001,4093.4,4093.2,0.4496]
[1760121327863,0.001,4093.4,4093.0,0.1216]
[1760121328149,2.44333012,4092.8,4092.6,14.6216]
[1760121328311,2.44333012,4092.8,4092.7,3.706]
[1760121328951,2.44327387,4092.9,4092.7,3.706]
[1760121329558,2.44313459,4093.2,4092.7,3.706]
[1760121329855,0.1216,4093.3,4092.8,3.706]
[1760121329856,2.44319569,4093.0,4092.8,3.706]
[1760121330057,2.44325539,4092.9,4092.8,3.706]
[1760121331112,1.92,4093.0,4092.8,3.706]
[1760121331318,2.44324807,4093.0,4092.9,0.4496]
[1760121331865,2.44325539,4092.9,4092.8,3.706]
[1760121332247,2.44337478,4092.7,4092.6,14.6216]
[1760121332451,2.44337478,4092.7,4092.6,18.206]
[1760121332665,2.44361361,4092.3,4092.0,0.002]
[1760121332887,2.44373304,4092.1,4092.0,0.002]
[1760121333090,4.48533304,4092.1,4092.0,0.002]
[1760121333395,4.59383304,4092.1,4092.0,0.002]
[1760121333687,5.1169018,4092.1,4092.0,0.002]
[1760121334750,8.5928018,4092.1,4092.0,0.002]
[1760121335184,4.8868018,4092.1,4092.0,0.002]
[1760121336753,4.36373304,4092.1,4092.0,0.002]
[1760121336954,1.92,4092.1,4092.0,0.4516]
[1760121337587,4.36373304,4092.1,4092.0,0.002]
[1760121339386,4.47223304,4092.1,4092.0,0.002]
[1760121339890,4.36373304,4092.1,4092.0,0.002]
[1760121340453,1.92,4092.1,4092.0,0.002]
[1760121340690,1.92,4092.1,4092.0,0.4516]
[1760121341077,0.65300488,4093.3,4092.1,0.6336]
[1760121341295,1.92,4093.1,4092.2,0.6833]
[1760121341468,2.44331227,4092.9,4092.3,14.5]
[1760121341668,2.44331227,4092.9,4092.4,4.1556]
[1760121341990,2.44332757,4092.8,4092.5,0.4496]
[1760121342489,2.44332757,4092.8,4092.6,0.4496]
[1760121342691,1.92,4093.2,4092.6,0.4496]
[1760121342892,2.44308188,4093.2,4092.7,0.02443374]
[1760121343091,2.443136,4093.1,4092.7,0.47403374]
[1760121343293,2.443136,4093.1,4092.8,0.4496]
[1760121343469,2.44312951,4093.2,4092.8,0.4496]
[1760121343655,2.44314047,4093.1,4092.9,3.706]
[1760121343862,2.44305843,4093.3,4093.0,0.4496]
[1760121344158,2.443136,4093.1,4093.0,0.4496]
[1760121344361,0.001,4093.4,4092.9,3.706]
[1760121344699,0.001,4093.4,4092.9,4.1556]
[1760121344996,0.001,4093.4,4093.0,0.4496]
[1760121345172,2.44395837,4093.4,4093.0,0.4496]
[1760121345683,2.44395837,4093.4,4092.9,4.32760337]
[1760121345684,2.44395837,4093.4,4093.1,0.4496]
[1760121345887,2.44395837,4093.4,4093.2,0.4496]
[1760121346059,2.44301663,4093.3,4093.2,0.4496]
[1760121346267,2.4432219,4093.0,4092.7,0.4406]
[1760121346492,2.44312675,4093.2,4092.8,3.706]
[1760121347105,2.44396345,4093.4,4092.8,3.706]
[1760121347106,0.001,4093.4,4092.8,3.706]
[1760121347408,2.44315257,4093.1,4092.8,3.706]
[1760121347994,2.44304239,4093.3,4092.8,3.706]
[1760121348190,2.44304239,4093.3,4092.8,4.1466]
[1760121348382,0.001,4093.4,4092.8,4.1466]
[1760121348383,2.44318777,4093.1,4092.8,4.1466]
[1760121348617,2.44312654,4093.2,4092.9,0.4406]
[1760121348983,4.363136,4093.1,4092.9,0.4406]
[1760121349178,1.92,4093.1,4092.4,0.4674]
[1760121349438,0.001,4093.4,4092.5,3.706]
[1760121349439,2.44343449,4092.6,4092.5,3.706]
[1760121349629,2.44343449,4092.6,4092.4,2.5034]
[1760121349630,2.44373304,4092.1,4092.0,0.002]
[1760121350923,4.9954663,4092.1,4092.0,0.002]
[1760121355704,4.8869663,4092.1,4092.0,0.002]
[1760121356084,4.9954663,4092.1,4092.0,0.002]
[1760121356488,8.7014663,4092.1,4092.0,0.002]
[1760121358332,8.5929663,4092.1,4092.0,0.002]
[1760121358492,8.7014663,4092.1,4092.0,0.002]
[1760121360230,8.7014663,4092.1,4091.5,0.002]
[1760121360231,2.44403167,4091.6,4091.5,0.002]
[1760121360451,8.07003167,4091.6,4091.5,0.002]
[1760121360751,8.70369561,4091.6,4091.5,0.002]
[1760121361053,4.99769561,4091.6,4091.5,0.002]
[1760121361346,8.59309561,4091.6,4091.5,0.002]
[1760121361716,4.88709561,4091.6,4091.5,0.002]
[1760121362035,8.59309561,4091.6,4091.5,0.002]
[1760121362206,38.70419561,4091.6,4091.5,0.002]
[1760121362945,38.70419561,4091.6,4091.5,0.0009]
[1760121363338,40.00989234,4091.6,4091.5,0.0009]
[1760121363543,56.79909641,4091.6,4091.5,0.0009]
[1760121363751,50.65509641,4091.6,4091.5,0.0009]
[1760121363950,35.46709641,4091.6,4091.5,0.0009]
[1760121364155,21.78739968,4091.6,4091.5,0.0009]
[1760121364352,27.53139968,4091.6,4091.5,0.0009]
[1760121364655,4.88709561,4091.6,4091.5,0.0009]
[1760121364862,2.96709561,4091.6,4091.5,0.0009]
[1760121365027,2.44403167,4091.6,4091.5,0.0009]
[1760121365330,2.55453167,4091.6,4091.5,0.0009]
[1760121365519,2.96709561,4091.6,4091.5,0.0009]
[1760121366257,3.07759561,4091.6,4091.5,0.0009]
[1760121366647,8.70459561,4091.6,4091.5,0.0009]
[1760121366859,25.49379968,4091.6,4091.5,0.0009]
[1760121367955,21.67629968,4091.6,4091.5,0.0009]
[1760121369040,21.78679968,4091.6,4091.5,0.0009]
[1760121370630,25.49379968,4091.6,4091.5,0.0009]
[1760121371560,25.38329968,4091.6,4091.5,0.0009]
[1760121372466,25.49379968,4091.6,4091.5,0.0009]
[1760121375435,26.14683852,4091.6,4091.5,0.0009]
[1760121375641,25.49379968,4091.6,4091.5,0.0009]
[1760121376195,2.44468891,4090.5,4090.0,0.25]
[1760121376377,4.36492799,4090.1,4090.0,0.25]
[1760121376537,4.9975001,4090.1,4090.0,0.25]
[1760121377145,4.9975001,4090.1,4089.1,0.1216]
[1760121377146,2.4454661,4089.2,4089.1,0.1216]
[1760121377351,2.4454661,4089.2,4088.7,0.2295]
[1760121377352,2.04455477,4089.6,4088.8,0.4371]
[1760121377566,2.56982833,4089.6,4088.8,0.73191705]
[1760121377752,2.44539585,4089.4,4088.9,14.9371]
[1760121377968,2.44539585,4089.4,4089.0,0.4371]
[1760121378184,1.92,4089.9,4089.1,0.4371]
[1760121378378,2.44542426,4089.3,4089.1,0.4371]
[1760121378588,2.44542426,4089.3,4089.2,1.49371]
[1760121378755,2.44542426,4089.3,4089.2,1.93081]
[1760121378955,2.44535448,4089.4,4089.2,1.93081]
[1760121379203,2.44535448,4089.4,4089.2,1.49371]
[1760121379487,2.4454063,4089.3,4089.2,1.49371]
[1760121380593,0.65266873,4090.2,4089.2,1.93081]
[1760121380778,2.44505414,4089.9,4089.3,0.21753506]
[1760121380958,4.36486822,4090.2,4089.3,0.65463506]
[1760121380959,2.44498777,4090.0,4089.3,0.65463506]
[1760121381288,2.44518166,4089.7,4089.4,0.4371]
[1760121381497,2.44518166,4089.7,4089.3,0.193081]
[1760121381661,2.44508084,4089.9,4089.5,0.4371]
[1760121381988,4.36492099,4090.2,4089.6,0.4371]
[1760121381989,2.44510821,4089.8,4089.6,0.4371]
[1760121382153,2.44228511,4090.0,4089.8,0.6336]
[1760121382490,0.52228385,4090.0,4089.6,0.6336]
[1760121382669,4.3650072,4090.0,4089.6,1.0707]
[1760121382870,4.3650072,4090.0,4089.7,0.4371]
[1760121383083,2.44505868,4089.9,4089.7,1.17687891]
[1760121383387,1.92,4089.9,4089.7,1.17687891]
[1760121383765,2.44468891,4090.5,4089.8,14.5]
[1760121383984,2.44483179,4090.3,4089.8,14.5]
[1760121384295,1.92,4090.3,4089.9,0.4371]
[1760121384478,1.92,4090.3,4089.8,14.5]
[1760121384479,0.52252837,4090.3,4090.2,0.2295]
[1760121384663,2.44472315,4090.5,4090.2,0.2295]
[1760121384858,2.44464932,4090.6,4090.2,0.2295]
[1760121385076,2.44469912,4090.5,4090.3,0.4371]
[1760121385276,2.44464559,4090.6,4090.4,0.4371]
[1760121385499,0.52295116,4090.6,4090.5,0.4371]
[1760121385810,1.92,4090.9,4090.5,0.4371]
[1760121385811,2.44449326,4090.9,4090.5,0.87446]
[1760121386005,2.9673138,4091.1,4090.6,0.4371]
[1760121386210,2.44451548,4090.8,4090.7,0.4371]
[1760121386704,0.65266873,4091.2,4090.3,0.4371]
[1760121386705,2.4446401,4090.6,4090.3,0.4371]
[1760121386912,2.44295116,4091.1,4090.2,3.9365]
[1760121387073,2.44463157,4090.6,4090.4,0.4371]
[1760121387274,2.44468891,4090.5,4090.4,0.5587]
[1760121387474,2.96764007,4090.5,4090.4,0.5587]
[1760121387674,2.96764007,4090.5,4090.4,0.1216]
[1760121388283,2.4448115,4090.3,4090.1,3.9365]
[1760121388490,2.44322249,4090.3,4090.1,3.9365]
[1760121388696,0.52322249,4090.3,4090.1,3.9365]
[1760121388927,2.44480478,4090.4,4090.2,0.4371]
[1760121389087,4.88802727,4090.4,4090.1,5.99601]
[1760121389278,0.1216,4090.7,4090.3,0.4371]
[1760121389481,2.44471984,4090.5,4090.4,0.4371]
[1760121389680,0.52325963,4090.5,4090.4,0.4371]
[1760121389876,4.8876096,4091.1,4090.5,0.6336]
[1760121390116,0.5233003,4091.0,4090.6,4.1441]
[1760121390323,0.5233003,4091.0,4090.7,4.2657]
[1760121390527,0.5233003,4091.1,4090.8,0.4371]
[1760121390726,0.5233003,4091.3,4090.9,0.4371]
[1760121391023,0.77426873,4091.4,4090.7,3.8286]
[1760121391024,4.36433037,4091.1,4091.0,0.4371]
[1760121391183,4.88763067,4091.1,4091.0,0.4371]
[1760121392389,1.92,4091.1,4091.0,1.49727]
[1760121393006,1.92,4091.1,4091.0,15.99727]
[1760121393209,2.96736322,4091.5,4091.1,0.6336]
[1760121393413,2.44410375,4091.5,4091.2,4.1441]
[1760121393620,2.44410375,4091.5,4091.2,3.707]
[1760121393800,2.44410375,4091.5,4091.3,0.4371]